2CCN - Level 2 Cost Centre Name,,9CCN - Level 9 Cost Centre Name,9CCC - Level 9 Cost Centre Code,9AN - Level 9 Account Name,9AC - Level 9 Account Code,Date posted,Date of transaction,,Merchant Name,MerchantCity,Originating Account Name,Originating Account Number,MCC/SIC Code,MCC Description,Original Amount,Currency,Conversion Rate,Billed Amount,DebitCredit,ReferenceNbr,Statement Cycle,AccountName
Gloucester City Council,23UE,MANAGING DIRECTOR,RE100,OFFICE EQUIPMENT <5000,5010,2015-12-07,2015-12-04,,Amazon UK Marketplace,800-279-6620,REDACTED,471565******1967,5999,MISCELLANEOUS AND RETAIL STORES,21.48,Pound Sterling (826),1,21.48,Debit,74313225338000890341558,2016-01-02,GLOUCESTER CC
Gloucester City Council,23UE,MANAGING DIRECTOR,RE100,CONFERENCE/MEETING EXPENSES,5510,2015-12-10,2015-12-09,,WWW.SOLACE.ORG.UK,PONTEFRACT,REDACTED,471565******1967,8699,MEMBERSHIP ORGANIZATIONS NOT ELSEWHERE CLASSIFIED,450,Pound Sterling (826),1,450,Debit,74085325344465000123285,2016-01-02,GLOUCESTER CC
Gloucester City Council,23UE,MEET & GREET,FP309,UNIFORMS,5201,2015-12-03,2015-12-02,,WWW.TRESPASS.CO.UK,INTERNET,REDACTED,471565******4015,5655,SPORTS APPAREL  RIDING APPAREL STORES,33.92,Pound Sterling (826),1,33.92,Debit,74678585337090258819987,2016-01-02,GLOUCESTER CC
Gloucester City Council,23UE,MEET & GREET,FP309,UNIFORMS,5201,2015-12-03,2015-12-02,,WWW.MANDMDIRECT.COM,8712005000,REDACTED,471565******4015,5941,SPORTING GOODS STORES,46.44,Pound Sterling (826),1,46.44,Debit,74929325337013550128848,2016-01-02,GLOUCESTER CC
Gloucester City Council,23UE,TIC STAMP SALES,LT102,POSTAGES,5400,2015-12-07,2015-12-04,,ROYAL MAIL,EDINBURGH,REDACTED,471565******4015,9402,POSTAGE STAMPS,315,Pound Sterling (826),1,315,Debit,74678585339010181977163,2016-01-02,GLOUCESTER CC
Gloucester City Council,23UE,TOURISM MARKETING,LT100,UNIFORMS,5201,2015-12-15,2015-12-14,,SIMONJERSEY,4.41283E+11,REDACTED,471565******4015,5621,WOMEN'S READY TO WEAR STORES,42.88,Pound Sterling (826),1,42.88,Debit,74998765348549554310494,2016-01-02,GLOUCESTER CC
Gloucester City Council,23UE,TOURISM MARKETING,LT100,EXHIBITS AND COLLECTIONS,5038,2015-12-16,2015-12-15,,PAYPAL *SERVICESFOR,35314369001,REDACTED,471565******4015,7392,MANAGEMENT  CONSULTING AND PUBLIC RELATIONS SERVICES,376.8,Pound Sterling (826),1,376.8,Debit,74998865349549586763634,2016-01-02,GLOUCESTER CC
Gloucester City Council,23UE,CEMS/CREMS ADMIN,HC100,FEES FOR SERVICES RECEIVED,5350,2015-12-04,2015-12-03,,BOOTS FLU VOUCHERS,INTERNET,REDACTED,471565******1443,5912,DRUG STORES  PHARMACIES,8,Pound Sterling (826),1,8,Debit,74697055338000079632816,2016-01-02,GLOUCESTER CC
Gloucester City Council,23UE,HOMELESSNESS,CH120,GENERAL REPAIR/MAINT BUILDINGS,3000,2015-12-23,2015-12-22,,ARGOS RETAIL GROUP,INTERNET,REDACTED,471565******1443,5310,DISCOUNT STORES,37.49,Pound Sterling (826),1,37.49,Debit,74579155357003075929688,2016-01-02,GLOUCESTER CC
Gloucester City Council,23UE,DOCKS COMPLEX - CATERING SERVS,RB110,CATERING PROVISIONS -FOOD,5110,2015-12-15,2015-12-14,,SAINSBURYS SUPERMA,GLOUCESTER QU,REDACTED,471565******8223,5411,GROCERY STORES  SUPERMARKETS,25.4,Pound Sterling (826),1,25.4,Debit,74579155349006070331645,2016-01-02,GLOUCESTER CC
Gloucester City Council,23UE,DOCKS COMPLEX - SERVICES,RB100,OPERATIONAL EQUIPMENT <5000,5012,2015-12-17,2015-12-16,,B & Q,GLOUCESTER GL,REDACTED,471565******8223,5211,LUMBER AND BUILDING MATERIALS STORES,30.24,Pound Sterling (826),1,30.24,Debit,74579155351000373772501,2016-01-02,GLOUCESTER CC
Gloucester City Council,23UE,RETAIL MARKET - LANDLORD,HM300,TRADE REFUSE SACKS,5040,2015-12-14,2015-12-11,,ATTWOOLLS MANUFACT,01452 742211,REDACTED,471565******8476,5998,TENT AND AWNING SHOPS,162,Pound Sterling (826),1,162,Debit,74579155345000667303715,2016-01-02,GLOUCESTER CC
Gloucester City Council,23UE,SAFER STRONGER COMMUNITIES,FP841,OTHER MINOR SUPPLIES SERVICES,5590,2015-12-16,2015-12-15,,B & Q,GLOUCESTER GL,REDACTED,471565******8476,5211,LUMBER AND BUILDING MATERIALS STORES,42,Pound Sterling (826),1,42,Debit,74579155350007777979013,2016-01-02,GLOUCESTER CC
Gloucester City Council,23UE,FOLK MUSEUM,LM210,PUBLICATIONS FOR SALE,5064,2015-12-04,2015-12-03,,HANCOCK CASH AND CARRY LT,LOUGHBOROUGH,REDACTED,471565******9991,5300,WHOLESALE CLUBS,153.1,Pound Sterling (826),1,153.1,Debit,74463655337893385823156,2016-01-02,GLOUCESTER CC
Gloucester City Council,23UE,FOLK MUSEUM,LM210,EXHIBITS AND COLLECTIONS,5038,2015-12-16,2015-12-15,,ARMY OF ANGELS,GLOUCESTER,REDACTED,471565******9991,8398,CHARITABLE AND SOCIAL SERVICE ORGANIZATIONS,5,Pound Sterling (826),1,5,Debit,74085325349517001702544,2016-01-02,GLOUCESTER CC
Gloucester City Council,23UE,FOLK MUSEUM,LM210,EXHIBITS AND COLLECTIONS,5038,2015-12-16,2015-12-15,,FURNITURE RECYCLING PROJ,CHELTENHAM,REDACTED,471565******9991,8398,CHARITABLE AND SOCIAL SERVICE ORGANIZATIONS,67,Pound Sterling (826),1,67,Debit,74056575349525002029929,2016-01-02,GLOUCESTER CC
Gloucester City Council,23UE,CITY MUSEUM AND ART GALLERY,LM200,GENERAL REPAIR/MAINT BUILDINGS,3000,2015-12-16,2015-12-15,,CROWN DECORATING CENTR,GLOUCESTER,REDACTED,471565******9991,1520,GENERAL CONTRACTORS-RESIDENTIAL,156.9,Pound Sterling (826),1,156.9,Debit,74678585350080011472895,2016-01-02,GLOUCESTER CC
Gloucester City Council,23UE,FOLK MUSEUM,LM210,GENERAL REPAIR/MAINT BUILDINGS,3000,2015-12-16,2015-12-15,,CROWN DECORATING CENTR,GLOUCESTER,REDACTED,471565******9991,1520,GENERAL CONTRACTORS-RESIDENTIAL,156.9,Pound Sterling (826),1,156.9,Debit,74678585350080011472895,2016-01-02,GLOUCESTER CC
Gloucester City Council,23UE,CITY MUSEUM AND ART GALLERY,LM200,GENERAL REPAIR/MAINT BUILDINGS,3000,2015-12-17,2015-12-16,,HOMEBASE LTD 135,GLOUCESTER,REDACTED,471565******9991,5211,LUMBER AND BUILDING MATERIALS STORES,73.16,Pound Sterling (826),1,73.16,Debit,74579155351005470469125,2016-01-02,GLOUCESTER CC
Gloucester City Council,23UE,FOLK MUSEUM,LM210,GENERAL REPAIR/MAINT BUILDINGS,3000,2015-12-17,2015-12-16,,HOMEBASE LTD 135,GLOUCESTER,REDACTED,471565******9991,5211,LUMBER AND BUILDING MATERIALS STORES,73.16,Pound Sterling (826),1,73.16,Debit,74579155351005470469125,2016-01-02,GLOUCESTER CC
Gloucester City Council,23UE,FOLK MUSEUM,LM210,EXHIBITS AND COLLECTIONS,5038,2015-12-18,2015-12-17,,HOMEBASE LTD 135,GLOUCESTER,REDACTED,471565******9991,5211,LUMBER AND BUILDING MATERIALS STORES,30.35,Pound Sterling (826),1,30.35,Debit,74579155352003076400791,2016-01-02,GLOUCESTER CC
Gloucester City Council,23UE,CITY MUSEUM AND ART GALLERY,LM200,ADVERTISING AND PUBLICITY,5702,2016-01-01,2015-12-31,,FACEBOOK DMZJV8WJW2,www.fb.me/ads,REDACTED,471565******9991,7311,ADVERTISING SERVICES,1.58,Pound Sterling (826),1,1.58,Debit,74987505365527406841248,2016-01-02,GLOUCESTER CC
Gloucester City Council,23UE,GUILDHALL BAR AND CAF�,LA210,CATERING PROVISIONS -FOOD,5110,2015-12-03,2015-12-02,,ICELAND,GLOUCESTER,REDACTED,471565******2470,5411,GROCERY STORES  SUPERMARKETS,5,Pound Sterling (826),1,5,Debit,74698165337090335828446,2016-01-02,GLOUCESTER CC
Gloucester City Council,23UE,GUILDHALL BAR AND CAF�,LA210,CATERING PROVISIONS -FOOD,5110,2015-12-07,2015-12-04,,ASDA SUPERSTORE,GLOUCESTER,REDACTED,471565******2470,5411,GROCERY STORES  SUPERMARKETS,9.52,Pound Sterling (826),1,9.52,Debit,74698175339010264578892,2016-01-02,GLOUCESTER CC
Gloucester City Council,23UE,GUILDHALL BAR AND CAF�,LA210,CATERING PROVISIONS -FOOD,5110,2015-12-08,2015-12-07,,ASDA SUPERSTORE,GLOUCESTER,REDACTED,471565******2470,5411,GROCERY STORES  SUPERMARKETS,37.74,Pound Sterling (826),1,37.74,Debit,74698175342020199192326,2016-01-02,GLOUCESTER CC
Gloucester City Council,23UE,GUILDHALL BAR AND CAF�,LA210,CATERING PROVISIONS -FOOD,5110,2015-12-08,2015-12-07,,ALDI,GLOUCESTER,REDACTED,471565******2470,5411,GROCERY STORES  SUPERMARKETS,8.32,Pound Sterling (826),1,8.32,Debit,74019475342495000888617,2016-01-02,GLOUCESTER CC
Gloucester City Council,23UE,GUILDHALL BAR AND CAF�,LA210,CATERING PROVISIONS -FOOD,5110,2015-12-16,2015-12-15,,BOOKER LIMITED GLOUCESTER,GLOUCESTER,REDACTED,471565******2470,5811,CATERERS,63.58,Pound Sterling (826),1,63.58,Debit,74463665349923492016132,2016-01-02,GLOUCESTER CC
Gloucester City Council,23UE,GUILDHALL BAR AND CAF�,LA210,CATERING PROVISIONS -FOOD,5110,2015-12-16,2015-12-15,,WM MORRISON STORE,575 GLOUCESTE,REDACTED,471565******2470,5411,GROCERY STORES  SUPERMARKETS,18.72,Pound Sterling (826),1,18.72,Debit,74579155350000277924597,2016-01-02,GLOUCESTER CC
Gloucester City Council,23UE,GUILDHALL BAR AND CAF�,LA210,CATERING PROVISIONS -FOOD,5110,2015-12-17,2015-12-16,,ICELAND,GLOUCESTER,REDACTED,471565******2470,5411,GROCERY STORES  SUPERMARKETS,14,Pound Sterling (826),1,14,Debit,74698165351090266484822,2016-01-02,GLOUCESTER CC
Gloucester City Council,23UE,COUNCIL STREETCARE TEAM,HI101,VOCATIONAL TRAINING,2970,2015-12-04,2015-12-03,,TRAINLINE,RAIL TICKETS,REDACTED,471565******4841,4112,PASSENGER RAILWAYS,79.05,Pound Sterling (826),1,79.05,Debit,74998865337548331685682,2016-01-02,GLOUCESTER CC
Gloucester City Council,23UE,ENVIRONMENTAL PLANNING,LM340,VOCATIONAL TRAINING,2970,2015-12-04,2015-12-03,,TRAINLINE,RAIL TICKETS,REDACTED,471565******4841,4112,PASSENGER RAILWAYS,79.05,Pound Sterling (826),1,79.05,Debit,74998865337548331685682,2016-01-02,GLOUCESTER CC
Gloucester City Council,23UE,PLANNING POLICY,PT300,VOCATIONAL TRAINING,2970,2015-12-04,2015-12-03,,TRAINLINE,RAIL TICKETS,REDACTED,471565******4841,4112,PASSENGER RAILWAYS,79.05,Pound Sterling (826),1,79.05,Debit,74998865337548331685682,2016-01-02,GLOUCESTER CC
Gloucester City Council,23UE,PLANNING POLICY,PT300,PUBLIC TRANSPORTATION,4061,2015-12-04,2015-12-03,,TRAINLINE,RAIL TICKETS,REDACTED,471565******4841,4112,PASSENGER RAILWAYS,42.53,Pound Sterling (826),1,42.53,Debit,74998865337548331680550,2016-01-02,GLOUCESTER CC
Gloucester City Council,23UE,COUNCIL STREETCARE TEAM,HI101,VOCATIONAL TRAINING,2970,2015-12-04,2015-12-03,,TRAINLINE,RAIL TICKETS,REDACTED,471565******4841,4112,PASSENGER RAILWAYS,-14.6,Pound Sterling (826),1,-14.6,Credit,74998865337548331680345,2016-01-02,GLOUCESTER CC
Gloucester City Council,23UE,POLLUTION CONTROL,HE300,TRAVEL TICKETS,5077,2015-12-08,2015-12-07,,TRAINLINE,RAIL TICKETS,REDACTED,471565******4841,4112,PASSENGER RAILWAYS,72.22,Pound Sterling (826),1,72.22,Debit,74998865341548417025195,2016-01-02,GLOUCESTER CC
Gloucester City Council,23UE,PLANNING POLICY,PT300,VOCATIONAL TRAINING,2970,2015-12-11,2015-12-10,,TRAINLINE,RAIL TICKETS,REDACTED,471565******4841,4112,PASSENGER RAILWAYS,171.46,Pound Sterling (826),1,171.46,Debit,74998865344549492320433,2016-01-02,GLOUCESTER CC
Gloucester City Council,23UE,MEMBERS SUPPORT,RC300,PUBLIC TRANSPORTATION,4061,2015-12-15,2015-12-14,,TRAINLINE,RAIL TICKETS,REDACTED,471565******4841,4112,PASSENGER RAILWAYS,-14.6,Pound Sterling (826),1,-14.6,Credit,74998865348549578427504,2016-01-02,GLOUCESTER CC
Gloucester City Council,23UE,MANAGING DIRECTOR,RE100,PUBLIC TRANSPORTATION,4061,2015-12-17,2015-12-16,,TRAINLINE,RAIL TICKETS,REDACTED,471565******4841,4112,PASSENGER RAILWAYS,176.15,Pound Sterling (826),1,176.15,Debit,74998865350549629138659,2016-01-02,GLOUCESTER CC
Gloucester City Council,23UE,GUILDHALL EVENTS,LA200,FEES FOR SERVICES RECEIVED,5350,2015-12-07,2015-12-04,,MIPERMIT PARKING-DOM,INTERNET,REDACTED,471565******6962,7523,AUTOMOBILE PARKING LOTS AND GARAGES,10,Pound Sterling (826),1,10,Debit,74745105339010089055852,2016-01-02,GLOUCESTER CC
Gloucester City Council,23UE,BLACKFRIARS,LA609,FEES FOR SERVICES RECEIVED,5350,2015-12-07,2015-12-06,,SAINSBURY'S S/MKT,CHRISTCHURCH,REDACTED,471565******6962,5411,GROCERY STORES  SUPERMARKETS,80,Pound Sterling (826),1,80,Debit,74579155341007379389894,2016-01-02,GLOUCESTER CC
Gloucester City Council,23UE,BLACKFRIARS,LA609,FEES FOR SERVICES RECEIVED,5350,2015-12-07,2015-12-05,,LIGHTS4FUN.CO.UK,HARROGATE,REDACTED,471565******6962,5065,ELECTRICAL PARTS AND EQUIPMENT,-115.5,Pound Sterling (826),1,-115.5,Credit,74056575340003000074403,2016-01-02,GLOUCESTER CC
Gloucester City Council,23UE,GUILDHALL EVENTS,LA200,FEES FOR SERVICES RECEIVED,5350,2015-12-09,2015-12-08,,NCP LTD,BRISTOL,REDACTED,471565******6962,7523,AUTOMOBILE PARKING LOTS AND GARAGES,9.5,Pound Sterling (826),1,9.5,Debit,74698175343030127528862,2016-01-02,GLOUCESTER CC
Gloucester City Council,23UE,GUILDHALL EVENTS,LA200,FEES FOR SERVICES RECEIVED,5350,2015-12-10,2015-12-09,,MIPERMIT PARKING-DOM,INTERNET,REDACTED,471565******6962,7523,AUTOMOBILE PARKING LOTS AND GARAGES,10,Pound Sterling (826),1,10,Debit,74745105344040081624507,2016-01-02,GLOUCESTER CC
Gloucester City Council,23UE,GUILDHALL EVENTS,LA200,FEES FOR SERVICES RECEIVED,5350,2015-12-10,2015-12-08,,PAYPAL *LIGHTS4FUN,35314369001,REDACTED,471565******6962,5719,MISCELLANEOUS HOUSE FURNISHING SPECIALITY STORES,15.17,Pound Sterling (826),1,15.17,Debit,74998865343548448464536,2016-01-02,GLOUCESTER CC
Gloucester City Council,23UE,GUILDHALL EVENTS,LA200,FEES FOR SERVICES RECEIVED,5350,2015-12-14,2015-12-11,,MIPERMIT PARKING-DOM,INTERNET,REDACTED,471565******6962,7523,AUTOMOBILE PARKING LOTS AND GARAGES,10,Pound Sterling (826),1,10,Debit,74745105346060090434720,2016-01-02,GLOUCESTER CC
Gloucester City Council,23UE,BLACKFRIARS,LA609,FEES FOR SERVICES RECEIVED,5350,2015-12-18,2015-12-17,,ASDA 4387,LEEDS,REDACTED,471565******6962,5411,GROCERY STORES  SUPERMARKETS,-50,Pound Sterling (826),1,-50,Credit,74697055352000214585490,2016-01-02,GLOUCESTER CC
Gloucester City Council,23UE,GUILDHALL EVENTS,LA200,FEES FOR SERVICES RECEIVED,5350,2015-12-21,2015-12-18,,MIPERMIT PARKING-DOM,INTERNET,REDACTED,471565******6962,7523,AUTOMOBILE PARKING LOTS AND GARAGES,10,Pound Sterling (826),1,10,Debit,74745105353010097782563,2016-01-02,GLOUCESTER CC
Gloucester City Council,23UE,BLACKFRIARS,LA609,VOCATIONAL TRAINING,2970,2015-12-21,2015-12-20,,WOWCHER,INTERNET,REDACTED,471565******6962,5192,BOOKS PERIODICALS AND NEWSPAPERS,29,Pound Sterling (826),1,29,Debit,74745095355010990713682,2016-01-02,GLOUCESTER CC
Gloucester City Council,23UE,GUILDHALL EVENTS,LA200,ADVERTISING AND PUBLICITY,5702,2016-01-01,2015-12-31,,FACEBOOK R7RUJ8JE72,www.fb.me/ads,REDACTED,471565******6962,7311,ADVERTISING SERVICES,61.82,Pound Sterling (826),1,61.82,Debit,74987505365582774171538,2016-01-02,GLOUCESTER CC
Gloucester City Council,23UE,BUSINESS PLANNING & PERFORMANC,RL500,FEES FOR SERVICES RECEIVED,5350,2015-12-07,2015-12-05,,Amazon Svcs Europe SAR,AMAZON.CO.UK,REDACTED,471565******3318,5942,BOOK STORES,-20,Pound Sterling (826),1,-20,Credit,74313225339000415042326,2016-01-02,GLOUCESTER CC
Gloucester City Council,23UE,BUSINESS TRANSFORMATION & TECH,RT700,COMPUTER CONSUMABLES,5422,2015-12-09,2015-12-08,,WWW.JA.NET,12358222311,REDACTED,471565******3318,8699,MEMBERSHIP ORGANIZATIONS NOT ELSEWHERE CLASSIFIED,192,Pound Sterling (826),1,192,Debit,74830505342295326867571,2016-01-02,GLOUCESTER CC
Gloucester City Council,23UE,BUSINESS PLANNING & PERFORMANC,RL500,PUBLIC TRANSPORTATION,4061,2015-12-09,2015-12-08,,TRAINLINE,03332 022 222,REDACTED,471565******3318,4112,PASSENGER RAILWAYS,78.44,Pound Sterling (826),1,78.44,Debit,74998865342548440888097,2016-01-02,GLOUCESTER CC
Gloucester City Council,23UE,BUSINESS PLANNING & PERFORMANC,RL500,PUBLIC TRANSPORTATION,4061,2015-12-30,2015-12-29,,TRAINLINE,03332 022 222,REDACTED,471565******3318,4112,PASSENGER RAILWAYS,73.13,Pound Sterling (826),1,73.13,Debit,74998865363551857272726,2016-01-02,GLOUCESTER CC
Gloucester City Council,23UE,FINANCIAL SERVICES,RT200,PUBLIC TRANSPORTATION,4061,2015-12-04,2015-12-03,,GWR WEBSALES ECOM,SWINDON,REDACTED,471565******5409,4112,PASSENGER RAILWAYS,9,Pound Sterling (826),1,9,Debit,74424715337160382079483,2016-01-02,GLOUCESTER CC
Gloucester City Council,23UE,CLIENT REVS & BENS CONTRACT,RT240,COURT FEES,5358,2015-12-14,2015-12-11,,HMCOURTS-SERVICE.G,1452420100,REDACTED,471565******5409,9222,FINES,741,Pound Sterling (826),1,741,Debit,74579155346005879864783,2016-01-02,GLOUCESTER CC
Gloucester City Council,23UE,BUSINESS TRANSFORMATION & TECH,RT700,COMPUTER HARDWARE <5000,5420,2015-12-14,2015-12-11,,Amazon UK Marketplace,800-279-6620,REDACTED,471565******5409,5999,MISCELLANEOUS AND RETAIL STORES,26.99,Pound Sterling (826),1,26.99,Debit,74313225345000015024015,2016-01-02,GLOUCESTER CC
Gloucester City Council,23UE,FINANCIAL SERVICES,RT200,PUBLIC TRANSPORTATION,4061,2015-12-17,2015-12-16,,GWR WEBSALES ECOM,SWINDON,REDACTED,471565******5409,4112,PASSENGER RAILWAYS,32.1,Pound Sterling (826),1,32.1,Debit,74424715350160309200024,2016-01-02,GLOUCESTER CC
Gloucester City Council,23UE,FINANCIAL SERVICES,RT200,VOCATIONAL TRAINING,2970,2015-12-31,2015-12-30,,WWW.CIPFA.ORG.UK,LONDON WC2N,REDACTED,471565******5409,8699,MEMBERSHIP ORGANIZATIONS NOT ELSEWHERE CLASSIFIED,201,Pound Sterling (826),1,201,Debit,74085325365338000006442,2016-01-02,GLOUCESTER CC
Gloucester City Council,23UE,FINANCIAL SERVICES,RT200,VOCATIONAL TRAINING,2970,2015-12-31,2015-12-30,,WWW.AAT-ORG.UK,LONDON EC1R,REDACTED,471565******5409,8931,ACCOUNTING  AUDITING AND BOOKKEEPING SERVICES,88,Pound Sterling (826),1,88,Debit,74085325365529000009184,2016-01-02,GLOUCESTER CC
